[Event "The Kvibergspelen 2023"]
[Site "Kviberg Park Hotel & Conference, Krutvagen 2, Gothenburg, Sweden"]
[Date "2023.09.17"]
[Round "8.4"]
[White "Larkin, Vladyslav"]
[Black "Olsson, William"]
[Result "1-0"]
[TimeControl "15 minutes + 5 seconds per move from move one (Round 1 - 4) / 90 minutes + 30 seconds per move from move one (Round 5 - 8)"]
[WhiteTitle "IM"]
[BlackTitle "FM"]
[WhiteFideId "14152894"]
[BlackFideId "1741721"]
[WhiteElo "2464"]
[BlackElo "2376"]

1. Nf3 {[%clk 01:26:53]} {[%emt 00:04:07]} d5 {[%clk 01:30:52]} {[%emt
00:00:08]} 2. e3 {[%clk 01:27:07]} {[%emt 00:00:16]} Nf6 {[%clk 01:30:46]}
{[%emt 00:00:35]} 3. c4 {[%clk 01:27:30]} {[%emt 00:00:08]} c6 {[%clk
01:29:41]} {[%emt 00:01:36]} 4. Nc3 {[%clk 01:27:46]} {[%emt 00:00:13]} Nbd7
{[%clk 01:25:58]} {[%emt 00:04:12]} 5. Qc2 {[%clk 01:27:45]} {[%emt 00:00:31]}
e6 {[%clk 01:25:42]} {[%emt 00:00:47]} 6. b3 {[%clk 01:27:46]} {[%emt
00:00:28]} Bd6 {[%clk 01:26:08]} {[%emt 00:00:05]} 7. Bb2 {[%clk 01:28:11]}
{[%emt 00:00:05]} O-O {[%clk 01:26:33]} {[%emt 00:00:04]} 8. Be2 {[%clk
01:28:30]} {[%emt 00:00:11]} e5 {[%clk 01:14:44]} {[%emt 00:12:21]} 9. cxd5
{[%clk 01:28:10]} {[%emt 00:00:49]} cxd5 {[%clk 01:14:52]} {[%emt 00:00:22]} 10.
Nb5 {[%clk 01:28:25]} {[%emt 00:00:15]} Bb8 {[%clk 01:15:11]} {[%emt 00:00:11]}
11. Rc1 {[%clk 01:24:13]} {[%emt 00:04:42]} e4 {[%clk 01:14:56]} {[%emt
00:00:45]} 12. Nfd4 {[%clk 01:24:24]} {[%emt 00:00:19]} Nb6 {[%clk 01:15:18]}
{[%emt 00:00:07]} 13. Nc7 {[%clk 01:20:54]} {[%emt 00:04:00]} Bxc7 {[%clk
01:15:40]} {[%emt 00:00:09]} 14. Qxc7 {[%clk 01:21:20]} {[%emt 00:00:03]} Qxc7
{[%clk 01:15:26]} {[%emt 00:00:44]} 15. Rxc7 {[%clk 01:21:45]} {[%emt
00:00:06]} Rd8 {[%clk 01:08:39]} {[%emt 00:07:17]} 16. O-O {[%clk 01:18:11]}
{[%emt 00:04:03]} Ne8 {[%clk 01:08:40]} {[%emt 00:00:29]} 17. Rc5 {[%clk
01:17:19]} {[%emt 00:01:22]} Bd7 {[%clk 01:07:34]} {[%emt 00:01:35]} 18. Ra5
{[%clk 01:09:05]} {[%emt 00:08:46]} Nd6 {[%clk 01:01:35]} {[%emt 00:06:26]} 19.
Rc1 {[%clk 01:06:35]} {[%emt 00:03:03]} a6 {[%clk 00:55:07]} {[%emt 00:06:53]}
20. Ba3 {[%clk 01:04:19]} {[%emt 00:02:51]} Nf5 {[%clk 00:54:23]} {[%emt
00:01:14]} 21. Nxf5 {[%clk 00:54:06]} {[%emt 00:10:42]} Bxf5 {[%clk 00:54:48]}
{[%emt 00:00:06]} 22. Rc7 {[%clk 00:54:23]} {[%emt 00:00:12]} Rd7 {[%clk
00:53:59]} {[%emt 00:01:16]} 23. Rac5 {[%clk 00:54:49]} {[%emt 00:00:08]} Rad8
{[%clk 00:52:39]} {[%emt 00:01:50]} 24. Bb4 {[%clk 00:44:45]} {[%emt 00:10:34]}
Rxc7 {[%clk 00:51:32]} {[%emt 00:01:37]} 25. Rxc7 {[%clk 00:45:11]} {[%emt
00:00:04]} Rd7 {[%clk 00:51:56]} {[%emt 00:00:07]} 26. Rc5 {[%clk 00:45:35]}
{[%emt 00:00:05]} Rd6 {[%clk 00:49:04]} {[%emt 00:03:21]} 27. Rc3 {[%clk
00:45:45]} {[%emt 00:00:20]} Rg6 {[%clk 00:44:20]} {[%emt 00:05:14]} 28. Rc7
{[%clk 00:44:55]} {[%emt 00:01:20]} d4 {[%clk 00:43:14]} {[%emt 00:01:36]} 29.
Bh5 {[%clk 00:43:39]} {[%emt 00:01:46]} Rf6 {[%clk 00:42:10]} {[%emt 00:01:34]}
30. Bc5 {[%clk 00:39:46]} {[%emt 00:04:23]} dxe3 {[%clk 00:35:55]} {[%emt
00:06:45]} 31. dxe3 {[%clk 00:40:11]} {[%emt 00:00:05]} g6 {[%clk 00:35:52]}
{[%emt 00:00:32]} 32. Be2 {[%clk 00:40:20]} {[%emt 00:00:21]} Nd5 {[%clk
00:34:29]} {[%emt 00:01:54]} 33. Rxb7 {[%clk 00:40:34]} {[%emt 00:00:16]} Rc6
{[%clk 00:34:55]} {[%emt 00:00:05]} 34. b4 {[%clk 00:35:41]} {[%emt 00:05:23]}
Be6 {[%clk 00:34:28]} {[%emt 00:00:56]} 35. a3 {[%clk 00:33:08]} {[%emt
00:03:04]} Nc3 {[%clk 00:32:38]} {[%emt 00:02:15]} 36. Bf1 {[%clk 00:32:39]}
{[%emt 00:01:03]} Nb1 {[%clk 00:32:40]} {[%emt 00:00:27]} 37. Rb8+ {[%clk
00:28:48]} {[%emt 00:04:23]} Kg7 {[%clk 00:32:51]} {[%emt 00:00:18]} 38. a4
{[%clk 00:26:18]} {[%emt 00:03:01]} Nd2 {[%clk 00:33:13]} {[%emt 00:00:09]} 39.
Be2 {[%clk 00:26:27]} {[%emt 00:00:19]} Nb3 {[%clk 00:33:04]} {[%emt 00:00:40]}
40. Bf8+ {[%clk 00:26:39]} {[%emt 00:00:18]} Kf6 {[%clk 00:33:27]} {[%emt
00:00:07]} 41. h3 {[%clk 00:26:02]} {[%emt 00:01:07]} a5 {[%clk 00:27:27]}
{[%emt 00:06:30]} 42. bxa5 {[%clk 00:25:16]} {[%emt 00:01:16]} Nxa5 {[%clk
00:27:31]} {[%emt 00:00:26]} 43. Bb5 {[%clk 00:25:23]} {[%emt 00:00:23]} Rc1+
{[%clk 00:26:16]} {[%emt 00:01:44]} 44. Kh2 {[%clk 00:25:48]} {[%emt 00:00:05]}
Ke5 {[%clk 00:23:10]} {[%emt 00:03:37]} 45. Rd8 {[%clk 00:23:57]} {[%emt
00:02:21]} Nb7 {[%clk 00:18:59]} {[%emt 00:04:41]} 46. Bg7+ {[%clk 00:21:49]}
{[%emt 00:02:37]} Kf5 {[%clk 00:19:20]} {[%emt 00:00:10]} 47. Ra8 {[%clk
00:19:40]} {[%emt 00:02:39]} g5 {[%clk 00:18:52]} {[%emt 00:00:58]} 48. Bd4
{[%clk 00:18:18]} {[%emt 00:01:51]} Rc8 {[%clk 00:16:35]} {[%emt 00:02:47]} 49.
g4+ {[%clk 00:18:43]} {[%emt 00:00:05]} Kg6 {[%clk 00:16:58]} {[%emt 00:00:07]}
50. Rxc8 {[%clk 00:18:57]} {[%emt 00:00:17]} Bxc8 {[%clk 00:17:24]} {[%emt
00:00:04]} 51. Bc6 {[%clk 00:19:10]} {[%emt 00:00:18]} f5 {[%clk 00:17:23]}
{[%emt 00:00:30]} 52. Kg3 {[%clk 00:15:30]} {[%emt 00:04:10]} Nd6 {[%clk
00:14:40]} {[%emt 00:03:12]} 53. Be5 {[%clk 00:15:08]} {[%emt 00:00:52]} Nc4
{[%clk 00:14:49]} {[%emt 00:00:21]} 54. Bc3 {[%clk 00:15:10]} {[%emt 00:00:29]}
Kf7 {[%clk 00:14:21]} {[%emt 00:00:58]} 55. gxf5 {[%clk 00:15:02]} {[%emt
00:00:38]} 1-0

[Event "The Kvibergspelen 2023"]
[Site "Kviberg Park Hotel & Conference, Krutvagen 2, Gothenburg, Sweden"]
[Date "2023.09.17"]
[Round "8.5"]
[White "Akesson, Ralf"]
[Black "Falkevall, Axel"]
[Result "1/2-1/2"]
[TimeControl "15 minutes + 5 seconds per move from move one (Round 1 - 4) / 90 minutes + 30 seconds per move from move one (Round 5 - 8)"]
[WhiteTitle "GM"]
[BlackTitle "FM"]
[WhiteFideId "1700120"]
[BlackFideId "1735560"]
[WhiteElo "2410"]
[BlackElo "2276"]

1. Nf3 {[%clk 01:30:55]} {[%emt 00:00:06]} Nf6 {[%clk 01:30:46]} {[%emt
00:00:09]} 2. c4 {[%clk 01:31:20]} {[%emt 00:00:10]} g6 {[%clk 01:31:11]}
{[%emt 00:00:05]} 3. Nc3 {[%clk 01:30:58]} {[%emt 00:00:54]} Bg7 {[%clk
01:29:17]} {[%emt 00:02:22]} 4. e4 {[%clk 01:31:19]} {[%emt 00:00:09]} d6
{[%clk 01:29:43]} {[%emt 00:00:04]} 5. d4 {[%clk 01:32:13]} {[%emt 00:00:06]}
O-O {[%clk 01:30:38]} {[%emt 00:00:05]} 6. Be2 {[%clk 01:31:56]} {[%emt
00:00:47]} e5 {[%clk 01:31:01]} {[%emt 00:00:07]} 7. Be3 {[%clk 01:32:18]}
{[%emt 00:00:08]} Ng4 {[%clk 01:30:18]} {[%emt 00:01:13]} 8. Bg5 {[%clk
01:32:37]} {[%emt 00:00:11]} f6 {[%clk 01:30:43]} {[%emt 00:00:04]} 9. Bh4
{[%clk 01:32:14]} {[%emt 00:00:54]} g5 {[%clk 01:26:55]} {[%emt 00:04:17]} 10.
Bg3 {[%clk 01:32:36]} {[%emt 00:00:09]} Nh6 {[%clk 01:26:19]} {[%emt 00:01:06]}
11. d5 {[%clk 01:30:38]} {[%emt 00:02:28]} Nd7 {[%clk 01:18:03]} {[%emt
00:08:45]} 12. h4 {[%clk 01:21:36]} {[%emt 00:09:32]} g4 {[%clk 01:15:13]}
{[%emt 00:03:21]} 13. Nh2 {[%clk 01:20:32]} {[%emt 00:01:33]} f5 {[%clk
01:13:09]} {[%emt 00:02:35]} 14. exf5 {[%clk 01:20:52]} {[%emt 00:00:10]} Nc5
{[%clk 01:12:45]} {[%emt 00:00:54]} 15. O-O {[%clk 01:17:49]} {[%emt 00:03:33]}
e4 {[%clk 01:07:40]} {[%emt 00:05:35]} 16. Bxg4 {[%clk 01:07:29]} {[%emt
00:10:49]} Nxf5 {[%clk 01:05:24]} {[%emt 00:02:47]} 17. Bxf5 {[%clk 01:06:28]}
{[%emt 00:01:31]} Bxf5 {[%clk 01:05:43]} {[%emt 00:00:10]} 18. Ng4 {[%clk
01:06:18]} {[%emt 00:00:40]} Qe7 {[%clk 01:00:12]} {[%emt 00:06:01]} 19. Ne3
{[%clk 01:01:40]} {[%emt 00:05:09]} Bd7 {[%clk 00:59:36]} {[%emt 00:01:05]} 20.
Qd2 {[%clk 00:56:39]} {[%emt 00:05:31]} Bf6 {[%clk 00:49:37]} {[%emt 00:10:29]}
21. b4 {[%clk 00:52:17]} {[%emt 00:04:52]} Nd3 {[%clk 00:47:21]} {[%emt
00:02:47]} 22. Rab1 {[%clk 00:49:42]} {[%emt 00:03:05]} Bxh4 {[%clk 00:37:15]}
{[%emt 00:10:34]} 23. Nxe4 {[%clk 00:45:45]} {[%emt 00:04:29]} Qxe4 {[%clk
00:36:25]} {[%emt 00:01:19]} 24. f3 {[%clk 00:44:43]} {[%emt 00:01:33]} Rxf3
{[%clk 00:30:11]} {[%emt 00:06:43]} 25. Rxf3 {[%clk 00:37:38]} {[%emt
00:07:35]} Ne5 {[%clk 00:26:18]} {[%emt 00:04:23]} 26. Bxe5 {[%clk 00:36:14]}
{[%emt 00:01:54]} Qxb1+ {[%clk 00:26:13]} {[%emt 00:00:36]} 27. Rf1 {[%clk
00:36:37]} {[%emt 00:00:07]} Qe4 {[%clk 00:25:50]} {[%emt 00:00:53]} 28. Bb2
{[%clk 00:33:49]} {[%emt 00:03:17]} Bg5 {[%clk 00:23:14]} {[%emt 00:03:06]} 29.
Ng4 {[%clk 00:29:05]} {[%emt 00:05:14]} Qxg4 {[%clk 00:20:21]} {[%emt
00:03:23]} 30. Qc3 {[%clk 00:29:24]} {[%emt 00:00:11]} Be3+ {[%clk 00:20:43]}
{[%emt 00:00:09]} 31. Qxe3 {[%clk 00:29:48]} {[%emt 00:00:06]} Re8 {[%clk
00:20:57]} {[%emt 00:00:15]} 32. Qc3 {[%clk 00:20:22]} {[%emt 00:09:57]} Re5
{[%clk 00:21:17]} {[%emt 00:00:09]} 33. c5 {[%clk 00:19:32]} {[%emt 00:01:21]}
Bf5 {[%clk 00:17:40]} {[%emt 00:04:07]} 34. Rf3 {[%clk 00:16:37]} {[%emt
00:03:24]} Qe4 {[%clk 00:13:40]} {[%emt 00:04:31]} 35. cxd6 {[%clk 00:16:25]}
{[%emt 00:00:42]} cxd6 {[%clk 00:13:56]} {[%emt 00:00:15]} 36. Rf1 {[%clk
00:03:45]} {[%emt 00:13:10]} 1/2-1/2

[Event "The Kvibergspelen 2023"]
[Site "Kviberg Park Hotel & Conference, Krutvagen 2, Gothenburg, Sweden"]
[Date "2023.09.17"]
[Round "8.6"]
[White "Hansen, Lars"]
[Black "Hansen, Sune Berg"]
[Result "0-1"]
[TimeControl "15 minutes + 5 seconds per move from move one (Round 1 - 4) / 90 minutes + 30 seconds per move from move one (Round 5 - 8)"]
[BlackTitle "GM"]
[WhiteFideId "1402528"]
[BlackFideId "1400266"]
[WhiteElo "2188"]
[BlackElo "2512"]

1. Nf3 {[%clk 01:30:27]} {[%emt 00:00:33]} Nf6 {[%clk 01:30:17]} {[%emt
00:00:44]} 2. b3 {[%clk 01:29:57]} {[%emt 00:00:59]} g6 {[%clk 01:28:42]}
{[%emt 00:02:05]} 3. Bb2 {[%clk 01:30:11]} {[%emt 00:00:16]} Bg7 {[%clk
01:29:04]} {[%emt 00:00:08]} 4. e3 {[%clk 01:30:13]} {[%emt 00:00:28]} O-O
{[%clk 01:28:35]} {[%emt 00:00:59]} 5. Be2 {[%emt 00:01:06]} c5 {[%clk
01:28:07]} 6. O-O {[%clk 01:30:38]} {[%emt 00:00:27]} b6 {[%clk 01:27:34]}
{[%emt 00:01:04]} 7. c4 {[%clk 01:28:07]} {[%emt 00:03:01]} Bb7 {[%clk
01:26:14]} {[%emt 00:01:50]} 8. Nc3 {[%clk 01:26:27]} {[%emt 00:02:09]} Nc6
{[%clk 01:21:21]} {[%emt 00:05:24]} 9. Qc2 {[%clk 01:16:43]} {[%emt 00:10:13]}
e6 {[%clk 01:15:45]} {[%emt 00:06:07]} 10. Rad1 {[%clk 01:13:54]} {[%emt
00:03:18]} Qe7 {[%clk 01:13:50]} {[%emt 00:02:25]} 11. Qb1 {[%clk 01:10:13]}
{[%emt 00:04:11]} d6 {[%clk 01:11:13]} {[%emt 00:03:08]} 12. Rfe1 {[%clk
01:03:23]} {[%emt 00:07:20]} Rab8 {[%clk 01:05:14]} {[%emt 00:06:28]} 13. d4
{[%clk 00:55:55]} {[%emt 00:07:58]} Ne8 {[%clk 01:00:45]} {[%emt 00:04:59]} 14.
Rd2 {[%clk 00:44:53]} {[%emt 00:11:32]} a6 {[%clk 00:53:05]} {[%emt 00:08:12]}
15. Na4 {[%clk 00:30:57]} {[%emt 00:14:25]} Nd8 {[%clk 00:46:31]} {[%emt
00:07:04]} 16. Red1 {[%clk 00:29:56]} {[%emt 00:01:30]} Bc6 {[%clk 00:39:08]}
{[%emt 00:07:54]} 17. Nc3 {[%clk 00:27:01]} {[%emt 00:03:25]} Ba8 {[%clk
00:37:16]} {[%emt 00:02:22]} 18. a3 {[%clk 00:19:31]} {[%emt 00:08:01]} f5
{[%clk 00:33:45]} {[%emt 00:04:01]} 19. b4 {[%clk 00:15:43]} {[%emt 00:04:19]}
cxd4 {[%clk 00:31:14]} {[%emt 00:03:00]} 20. Nxd4 {[%clk 00:14:17]} {[%emt
00:01:55]} Nf7 {[%clk 00:28:21]} {[%emt 00:03:24]} 21. Qa2 {[%clk 00:11:03]}
{[%emt 00:03:43]} e5 {[%clk 00:23:03]} {[%emt 00:05:48]} 22. Nf3 {[%clk
00:10:54]} {[%emt 00:00:40]} Nf6 {[%clk 00:22:59]} {[%emt 00:00:33]} 23. Ne1
{[%clk 00:10:36]} {[%emt 00:00:48]} Rfd8 {[%clk 00:18:07]} {[%emt 00:05:23]} 24.
Bf3 {[%clk 00:08:43]} {[%emt 00:02:23]} e4 {[%clk 00:16:26]} {[%emt 00:02:11]}
25. Be2 {[%clk 00:09:08]} {[%emt 00:00:04]} Rd7 {[%clk 00:11:51]} {[%emt
00:05:05]} 26. a4 {[%clk 00:05:41]} {[%emt 00:03:58]} Bb7 {[%clk 00:11:15]}
{[%emt 00:01:06]} 27. a5 {[%clk 00:05:24]} {[%emt 00:00:47]} bxa5 {[%clk
00:10:53]} {[%emt 00:00:52]} 28. Qxa5 {[%clk 00:05:17]} {[%emt 00:00:36]} Rc8
{[%clk 00:08:24]} {[%emt 00:02:59]} 29. Na4 {[%clk 00:04:11]} {[%emt 00:01:36]}
Rdd8 {[%clk 00:07:50]} {[%emt 00:01:04]} 30. c5 {[%clk 00:03:54]} {[%emt
00:00:47]} f4 {[%clk 00:06:12]} {[%emt 00:02:08]} 31. cxd6 {[%clk 00:03:18]}
{[%emt 00:01:06]} Nxd6 {[%clk 00:05:57]} {[%emt 00:00:44]} 32. Nc5 {[%clk
00:03:35]} {[%emt 00:00:14]} fxe3 {[%clk 00:04:08]} {[%emt 00:02:20]} 33. fxe3
{[%clk 00:03:53]} {[%emt 00:00:12]} Bh6 {[%clk 00:02:23]} {[%emt 00:02:15]} 34.
Rxd6 {[%clk 00:04:01]} {[%emt 00:00:22]} Bxe3+ {[%clk 00:03:07]} {[%emt
00:00:15]} 35. Kh1 {[%clk 00:04:53]} {[%emt 00:00:07]} Rxd6 {[%clk 00:03:14]}
{[%emt 00:00:24]} 36. Rxd6 {[%clk 00:04:58]} {[%emt 00:00:26]} Qxd6 {[%clk
00:03:37]} {[%emt 00:00:06]} 37. Nxb7 {[%clk 00:05:15]} {[%emt 00:00:13]} Qd2
{[%clk 00:03:43]} {[%emt 00:00:24]} 38. b5 {[%clk 00:00:51]} {[%emt 00:04:54]}
Qxe2 {[%clk 00:03:56]} {[%emt 00:00:17]} 39. Qa2+ {[%clk 00:01:16]} {[%emt
00:00:05]} Rc4 {[%clk 00:04:15]} {[%emt 00:00:10]} 0-1

[Event "The Kvibergspelen 2023"]
[Site "Kviberg Park Hotel & Conference, Krutvagen 2, Gothenburg, Sweden"]
[Date "2023.09.17"]
[Round "8.7"]
[White "Thorn, Eric"]
[Black "Nordenbaek, Jan"]
[Result "1-0"]
[TimeControl "15 minutes + 5 seconds per move from move one (Round 1 - 4) / 90 minutes + 30 seconds per move from move one (Round 5 - 8)"]
[WhiteTitle "FM"]
[WhiteFideId "1710729"]
[BlackFideId "1401475"]
[WhiteElo "2390"]
[BlackElo "2163"]

1. d4 {[%clk 01:28:52]} {[%emt 00:01:59]} Nf6 {[%clk 01:30:41]} {[%emt
00:00:28]} 2. c4 {[%clk 01:29:17]} {[%emt 00:00:04]} g6 {[%clk 01:30:29]}
{[%emt 00:00:43]} 3. Nc3 {[%clk 01:24:24]} {[%emt 00:05:22]} Bg7 {[%clk
01:30:34]} {[%emt 00:00:26]} 4. e4 {[%clk 01:24:37]} {[%emt 00:00:18]} d6
{[%clk 01:30:58]} {[%emt 00:00:06]} 5. Nf3 {[%clk 01:24:38]} {[%emt 00:00:21]}
O-O {[%clk 01:31:18]} {[%emt 00:00:16]} 6. Be2 {[%clk 01:24:44]} {[%emt
00:00:24]} e5 {[%clk 01:31:22]} {[%emt 00:00:28]} 7. d5 {[%clk 01:24:00]}
{[%emt 00:01:13]} a5 {[%clk 01:31:19]} {[%emt 00:00:33]} 8. Bg5 {[%clk
01:24:23]} {[%emt 00:00:07]} h6 {[%clk 01:31:29]} {[%emt 00:00:19]} 9. Be3
{[%clk 01:24:41]} {[%emt 00:00:12]} Na6 {[%clk 01:28:43]} {[%emt 00:03:17]} 10.
Nd2 {[%clk 01:24:58]} {[%emt 00:00:12]} Nc5 {[%clk 01:19:53]} {[%emt 00:09:21]}
11. h4 {[%clk 01:18:11]} {[%emt 00:07:16]} Ne8 {[%clk 01:02:51]} {[%emt
00:17:33]} 12. h5 {[%clk 01:16:01]} {[%emt 00:02:40]} f5 {[%clk 00:58:33]}
{[%emt 00:04:48]} 13. hxg6 {[%clk 01:15:14]} {[%emt 00:01:16]} f4 {[%clk
00:58:56]} {[%emt 00:00:08]} 14. Bxc5 {[%clk 01:15:39]} {[%emt 00:00:05]} dxc5
{[%clk 00:59:25]} 15. Nf3 {[%clk 01:08:01]} {[%emt 00:08:07]} Nd6 {[%clk
00:57:19]} {[%emt 00:02:37]} 16. Qd2 {[%clk 01:00:12]} {[%emt 00:08:17]} Bd7
{[%clk 00:54:22]} {[%emt 00:03:29]} 17. O-O-O {[%clk 00:58:11]} {[%emt
00:02:30]} Qe8 {[%clk 00:50:51]} {[%emt 00:04:02]} 18. Nh4 {[%clk 00:55:34]}
{[%emt 00:03:06]} Ra6 {[%clk 00:50:39]} {[%emt 00:00:43]} 19. g4 {[%clk
00:53:59]} {[%emt 00:02:04]} fxg3 {[%clk 00:48:50]} {[%emt 00:02:20]} 20. fxg3
{[%clk 00:54:10]} {[%emt 00:00:18]} Qe7 {[%clk 00:42:11]} {[%emt 00:07:10]} 21.
Rdf1 {[%clk 00:45:43]} {[%emt 00:08:57]} Raa8 {[%clk 00:33:55]} {[%emt
00:08:47]} 22. Kc2 {[%clk 00:38:31]} {[%emt 00:07:41]} Rxf1 {[%clk 00:28:03]}
{[%emt 00:06:22]} 23. Rxf1 {[%clk 00:38:50]} {[%emt 00:00:10]} Rf8 {[%clk
00:28:20]} {[%emt 00:00:14]} 24. Rxf8+ {[%clk 00:38:09]} Qxf8 {[%clk 00:28:32]}
{[%emt 00:01:30]} 25. Qe3 {[%clk 00:25:36]} {[%emt 00:13:01]} b6 {[%clk
00:25:54]} {[%emt 00:03:09]} 26. g4 {[%clk 00:23:51]} {[%emt 00:02:15]} Qf4
{[%clk 00:24:53]} {[%emt 00:01:31]} 27. Qxf4 {[%clk 00:20:51]} {[%emt
00:03:31]} exf4 {[%clk 00:25:22]} {[%emt 00:00:01]} 28. Kd3 {[%clk 00:20:51]}
{[%emt 00:00:29]} a4 {[%clk 00:18:28]} {[%emt 00:07:24]} 29. Nf5 {[%clk
00:14:41]} {[%emt 00:06:40]} Be5 {[%clk 00:18:11]} {[%emt 00:00:47]} 30. a3
{[%clk 00:12:05]} {[%emt 00:03:06]} Be8 {[%clk 00:16:14]} {[%emt 00:02:26]} 31.
Nxh6+ {[%clk 00:05:11]} {[%emt 00:07:24]} Kg7 {[%clk 00:15:50]} {[%emt
00:00:55]} 32. Nf7 {[%clk 00:05:34]} {[%emt 00:00:07]} Bxc3 {[%clk 00:14:48]}
{[%emt 00:01:31]} 33. bxc3 {[%clk 00:04:32]} {[%emt 00:01:32]} Kxg6 {[%clk
00:11:53]} {[%emt 00:03:26]} 34. Nxd6 {[%clk 00:04:09]} {[%emt 00:00:53]} cxd6
{[%clk 00:12:21]} {[%emt 00:00:02]} 35. e5 {[%clk 00:04:14]} {[%emt 00:00:25]}
Kg5 {[%clk 00:06:10]} {[%emt 00:06:41]} 36. exd6 {[%clk 00:04:39]} {[%emt
00:00:05]} Bg6+ {[%clk 00:06:29]} {[%emt 00:00:10]} 37. Kd2 {[%clk 00:05:07]}
{[%emt 00:00:02]} Be8 {[%clk 00:06:53]} {[%emt 00:00:06]} 38. Ke1 {[%clk
00:04:45]} {[%emt 00:00:52]} Kf6 {[%clk 00:07:04]} {[%emt 00:00:20]} 39. Kf2
{[%clk 00:03:46]} {[%emt 00:01:29]} Ke5 {[%clk 00:07:10]} {[%emt 00:00:24]} 40.
Kf3 {[%clk 00:04:04]} {[%emt 00:00:11]} b5 {[%clk 00:06:32]} {[%emt 00:01:09]}
41. cxb5 {[%clk 00:04:13]} {[%emt 00:00:20]} Kxd5 {[%clk 00:06:56]} {[%emt
00:00:07]} 42. Kxf4 {[%clk 00:04:34]} {[%emt 00:00:08]} 1-0